fUSD/lending_fUSD_20251118
["ID","MTS","AMOUNT","RATE_DAILY","PERIOD"]
[394324313,1763451684276,155.40705073,0.00016621,2]
[394324314,1763451691788,151.0,0.0004169,120]
[394324315,1763451692141,151.0,0.0004169,120]
[394324316,1763451692499,151.0,0.0004169,120]
[394324317,1763451692814,151.0,0.0004169,120]
[394324318,1763451693641,151.0,0.0004169,120]
[394324319,1763451693930,151.0,0.0004169,120]
[394324320,1763451694309,151.0,0.0004169,120]
[394324321,1763451694663,500.0,0.00016621,2]
[394324322,1763451694722,151.0,0.0004169,120]
[394324323,1763451695093,151.0,0.0004169,120]
[394324324,1763451695445,159.169248,0.0004169,120]
[394324325,1763451695891,4500.85356957,0.00016522,2]
[394324326,1763451697349,151.0,0.0004169,120]
[394324327,1763451697671,151.0,0.0004169,120]
[394324328,1763451698307,151.0,0.0004169,120]
[394324329,1763451698727,151.0,0.0004169,120]
[394324330,1763451699072,151.0,0.0004169,120]
[394324331,1763451699552,151.0,0.0004169,120]
[394324332,1763451699837,151.0,0.0004169,120]
[394324333,1763451700159,151.0,0.0004169,120]
[394324334,1763451700532,151.0,0.0004169,120]
[394324335,1763451700890,4500.8535695,0.00016564,2]
[394324336,1763451700939,151.0,0.0004169,120]
[394324337,1763451701213,151.0,0.0004169,120]
[394324338,1763451701719,151.0,0.0004169,120]
[394324339,1763451703837,276.964938,0.0004169,120]
[394324340,1763451705898,342.8958102,0.00016606,2]
[394324341,1763451705926,4157.9577593,0.00016606,2]
[394324342,1763451709205,430.68861,0.0004169,120]
[394324343,1763451709427,151.0,0.0004169,120]
[394324344,1763451709511,430.68861,0.0004169,120]
[394324345,1763451709732,153.478762,0.0004169,120]
[394324346,1763451709801,430.68861,0.0004169,120]
[394324347,1763451710092,430.68861,0.0004169,120]
[394324348,1763451710435,430.68861,0.0004169,120]
[394324349,1763451710675,500.0,0.00016621,2]
[394324350,1763451710753,430.68861,0.0004169,120]
[394324351,1763451711067,430.68861,0.0004169,120]
[394324352,1763451711358,430.68861,0.0004169,120]
[394324353,1763451711692,430.68861,0.0004169,120]
[394324354,1763451711989,430.68861,0.0004169,120]
[394324355,1763451712303,430.68861,0.0004169,120]
[394324356,1763451712600,430.68861,0.0004169,120]
[394324357,1763451712936,430.68861,0.0004169,120]
[394324358,1763451713229,430.68861,0.0004169,120]
[394324359,1763451713530,430.68861,0.0004169,120]
[394324360,1763451714047,430.68861,0.0004169,120]
[394324361,1763451714190,430.68861,0.0004169,120]
[394324362,1763451714503,430.68861,0.0004169,120]
[394324363,1763451714817,430.68861,0.0004169,120]
[394324364,1763451715140,430.688617,0.0004169,120]
[394324365,1763451715540,1148.27763,0.0004169,120]
[394324366,1763451716047,1148.27763,0.0004169,120]
[394324367,1763451716394,1148.27763,0.0004169,120]
[394324368,1763451716720,1148.27763,0.0004169,120]
[394324369,1763451717015,1148.27763,0.0004169,120]
[394324370,1763451717302,1148.27763,0.0004169,120]
[394324371,1763451717636,1148.27763,0.0004169,120]
[394324372,1763451717982,1148.27763,0.0004169,120]
[394324373,1763451718390,1148.27763,0.0004169,120]
[394324374,1763451718699,1148.27763,0.0004169,120]
[394324375,1763451718999,1148.27763,0.0004169,120]
[394324376,1763451719342,1148.27763,0.0004169,120]
[394324377,1763451719693,1148.27763,0.0004169,120]
[394324378,1763451720039,1148.27763,0.0004169,120]
[394324379,1763451720398,1148.27763,0.0004169,120]
[394324380,1763451720770,1148.27763,0.0004169,120]
[394324381,1763451721251,1148.27763,0.0004169,120]
[394324382,1763451721547,1148.27763,0.0004169,120]
[394324383,1763451721654,96720.00965058,0.0004169,30]
[394324384,1763451721832,550.0,0.00016621,2]
[394324385,1763451722028,1148.27763,0.0004169,120]
[394324386,1763451722358,1148.277622,0.0004169,120]
[394324387,1763451727789,151.0,0.0004169,120]
[394324388,1763451728315,151.0,0.0004169,120]
[394324389,1763451728580,151.0,0.0004169,120]
[394324390,1763451728939,151.0,0.0004169,120]
[394324391,1763451730164,500.0,0.00016522,2]
[394324392,1763451730826,211.4,0.0004169,120]
[394324393,1763451731124,211.4,0.0004169,120]
[394324394,1763451731461,211.4,0.0004169,120]
[394324395,1763451732065,211.4,0.0004169,120]
[394324396,1763451732383,211.4,0.0004169,120]
[394324397,1763451732688,211.4,0.0004169,120]
[394324398,1763451732991,211.4,0.0004169,120]
[394324399,1763451733276,211.4,0.0004169,120]
[394324400,1763451733589,211.4,0.0004169,120]
[394324401,1763451733916,211.4,0.0004169,120]
[394324402,1763451734410,211.4,0.0004169,120]
[394324403,1763451734892,211.4,0.0004169,120]
[394324404,1763451734940,151.0,0.0004169,120]
[394324405,1763451735167,211.4,0.0004169,120]
[394324406,1763451735243,151.0,0.0004169,120]
[394324407,1763451735518,211.4,0.0004169,120]
[394324408,1763451735599,151.0,0.0004169,120]
[394324409,1763451735801,211.4,0.0004169,120]
[394324410,1763451735950,151.0,0.0004169,120]
[394324411,1763451736084,211.4,0.0004169,120]
[394324412,1763451736225,151.0,0.0004169,120]
[394324413,1763451736374,211.4,0.0004169,120]
[394324414,1763451736849,211.4,0.0004169,120]
[394324415,1763451736926,151.0,0.0004169,120]
[394324416,1763451737166,211.4,0.0004169,120]
[394324417,1763451737343,151.0,0.0004169,120]
[394324418,1763451737613,211.4,0.0004169,120]
[394324419,1763451737712,151.0,0.0004169,120]
[394324420,1763451737796,151.0,0.0004169,120]
[394324421,1763451738083,151.0,0.0004169,120]
[394324422,1763451738138,151.0,0.0004169,120]
[394324423,1763451738536,151.0,0.0004169,120]
[394324424,1763451738589,151.0,0.0004169,120]
[394324425,1763451738903,151.0,0.0004169,120]
[394324426,1763451738957,151.0,0.0004169,120]
[394324427,1763451739310,151.0,0.0004169,120]
[394324428,1763451739507,151.0,0.0004169,120]
[394324429,1763451739559,151.0,0.0004169,120]
[394324430,1763451739887,212.9672,0.0004169,120]
[394324431,1763451739938,151.0,0.0004169,120]
[394324432,1763451740335,151.0,0.0004169,120]
[394324433,1763451740416,645.100783,0.0004169,120]
[394324434,1763451740816,645.100783,0.0004169,120]
[394324435,1763451740868,151.0,0.0004169,120]
[394324436,1763451741108,645.100783,0.0004169,120]
[394324437,1763451741254,160.556975,0.0004169,120]
[394324438,1763451741437,645.100783,0.0004169,120]
[394324439,1763451741943,645.100783,0.0004169,120]
[394324440,1763451742299,280.3589,0.00016522,2]
[394324441,1763451742352,645.100783,0.0004169,120]
[394324442,1763451742702,645.100783,0.0004169,120]
[394324443,1763451743096,645.100783,0.0004169,120]
[394324444,1763451743443,645.100783,0.0004169,120]
[394324445,1763451743761,645.100783,0.0004169,120]
[394324446,1763451744290,645.100783,0.0004169,120]
[394324447,1763451745044,645.100783,0.0004169,120]
[394324448,1763451745121,156.042327,0.0004169,120]
[394324449,1763451745173,645.100783,0.0004169,120]
[394324450,1763451745517,645.100783,0.0004169,120]
[394324451,1763451745909,645.100783,0.0004169,120]
[394324452,1763451746512,645.100783,0.0004169,120]
[394324453,1763451746821,645.100783,0.0004169,120]
[394324454,1763451746960,151.0,0.0004169,120]
[394324455,1763451747009,435.620569,0.0004169,120]
[394324456,1763451747169,645.100783,0.0004169,120]
[394324457,1763451747244,151.0,0.0004169,120]
[394324458,1763451747301,435.620569,0.0004169,120]
[394324459,1763451747522,645.100783,0.0004169,120]
[394324460,1763451747584,435.620569,0.0004169,120]
[394324461,1763451748045,435.620569,0.0004169,120]
[394324462,1763451748139,151.0,0.0004169,120]
[394324463,1763451748214,645.100787,0.0004169,120]
[394324464,1763451748435,435.620569,0.0004169,120]
[394324465,1763451748510,151.0,0.0004169,120]
[394324466,1763451748802,151.0,0.0004169,120]
[394324467,1763451748857,435.620569,0.0004169,120]
[394324468,1763451749090,151.0,0.0004169,120]
[394324469,1763451749261,435.620569,0.0004169,120]
[394324470,1763451749437,151.0,0.0004169,120]
[394324471,1763451749595,435.620569,0.0004169,120]
[394324472,1763451749773,151.0,0.0004169,120]
[394324473,1763451749910,435.620569,0.0004169,120]
[394324474,1763451750079,151.0,0.0004169,120]
[394324475,1763451750298,435.620569,0.0004169,120]
[394324476,1763451750361,151.0,0.0004169,120]
[394324477,1763451750664,435.620569,0.0004169,120]
[394324478,1763451750716,151.0,0.0004169,120]
[394324479,1763451750984,435.620569,0.0004169,120]
[394324480,1763451751151,151.0,0.0004169,120]
[394324481,1763451751271,435.620569,0.0004169,120]
[394324482,1763451751438,151.0,0.0004169,120]
[394324483,1763451751490,176.370315,0.0004169,120]
[394324484,1763451751616,435.620569,0.0004169,120]
[394324485,1763451751880,176.370315,0.0004169,120]
[394324486,1763451751983,435.620569,0.0004169,120]
[394324487,1763451752180,176.370315,0.0004169,120]
[394324488,1763451752454,435.620569,0.0004169,120]
[394324489,1763451752524,176.370315,0.0004169,120]
[394324490,1763451752612,151.0,0.0004169,120]
[394324491,1763451752832,435.620569,0.0004169,120]
[394324492,1763451752902,176.370315,0.0004169,120]
[394324493,1763451752954,151.0,0.0004169,120]
[394324494,1763451753187,435.620569,0.0004169,120]
[394324495,1763451753239,151.0,0.0004169,120]
[394324496,1763451753332,176.370315,0.0004169,120]
[394324497,1763451753473,151.0,0.0004169,120]
[394324498,1763451753527,435.620569,0.0004169,120]
[394324499,1763451753618,176.370315,0.0004169,120]
[394324500,1763451753761,199.709663,0.0004169,120]
[394324501,1763451754021,435.620577,0.0004169,120]
[394324502,1763451754267,176.370315,0.0004169,120]
[394324503,1763451754944,176.370315,0.0004169,120]
[394324504,1763451755175,151.0,0.0004169,120]
[394324505,1763451755487,176.370315,0.0004169,120]
[394324506,1763451755535,151.0,0.0004169,120]
[394324507,1763451755585,155.49973,0.0004169,120]
[394324508,1763451755807,151.0,0.0004169,120]
[394324509,1763451755868,176.370315,0.0004169,120]
[394324510,1763451756094,152.329158,0.0004169,120]
[394324511,1763451756208,176.370315,0.0004169,120]
[394324512,1763451756535,176.370315,0.0004169,120]
[394324513,1763451756922,176.370315,0.0004169,120]
[394324514,1763451757555,176.370315,0.0004169,120]
[394324515,1763451757937,176.370315,0.0004169,120]
[394324516,1763451758309,176.370315,0.0004169,120]
[394324517,1763451758741,176.370315,0.0004169,120]
[394324518,1763451759213,176.370315,0.0004169,120]
[394324519,1763451759648,176.370321,0.0004169,120]
[394324520,1763451761645,151.0,0.0004169,120]
[394324521,1763451761976,151.0,0.0004169,120]
[394324522,1763451762280,151.0,0.0004169,120]
[394324523,1763451762565,151.0,0.0004169,120]
[394324524,1763451762947,151.0,0.0004169,120]
[394324525,1763451763907,151.0,0.0004169,120]
[394324526,1763451764372,151.0,0.0004169,120]
[394324527,1763451764676,151.0,0.0004169,120]
[394324528,1763451765012,151.0,0.0004169,120]
[394324529,1763451776259,1000.0,0.00016522,2]
[394324530,1763451788031,151.0,0.0004169,120]
[394324531,1763451788327,153.104347,0.0004169,120]
[394324532,1763451788379,151.0,0.0004169,120]
[394324533,1763451788752,151.0,0.0004169,120]
[394324534,1763451789148,151.0,0.0004169,120]
[394324535,1763451789582,151.0,0.0004169,120]
[394324536,1763451789982,151.0,0.0004169,120]
[394324537,1763451790241,151.0,0.0004169,120]
[394324538,1763451790608,162.616157,0.0004169,120]
[394324539,1763451792053,151.0,0.0004169,120]
[394324540,1763451792381,151.0,0.0004169,120]
[394324541,1763451792688,151.0,0.0004169,120]
[394324542,1763451793026,196.542464,0.0004169,120]
[394324543,1763451800690,151.0,0.0004169,120]
[394324544,1763451801029,161.465131,0.0004169,120]
[394324545,1763451804313,3011.6933407,7.911e-05,2]
[394324546,1763451804342,3526.0966593,7.911e-05,2]
[394324547,1763451804397,151.0,0.0004169,120]
[394324548,1763451804505,6473.9133407,8.327e-05,2]
[394324549,1763451804533,63.8766593,8.327e-05,2]
[394324550,1763451804703,6537.79,8.743e-05,2]
[394324551,1763451804757,151.0,0.0004169,120]
[394324552,1763451804890,3398.3433407,9.16e-05,2]
[394324553,1763451804933,3139.4466593,9.16e-05,2]
[394324554,1763451805024,151.0,0.0004169,120]
[394324555,1763451805274,6537.79,9.576e-05,2]
[394324556,1763451805333,322.7733407,9.992e-05,2]
[394324557,1763451805362,6215.0166593,9.992e-05,2]
[394324558,1763451805416,151.0,0.0004169,120]
[394324559,1763451805498,3784.9933407,0.00010409,2]
[394324560,1763451805524,2752.7966593,0.00010409,2]
[394324561,1763451805693,151.0,0.0004169,120]
[394324562,1763451805861,6537.79,0.00010825,2]
[394324563,1763451805907,709.4233407,0.00011241,2]
[394324564,1763451805934,5828.3666593,0.00011241,2]
[394324565,1763451806066,151.0,0.0004169,120]
[394324566,1763451806099,4171.6433407,0.00011658,2]
[394324567,1763451806129,2366.1466593,0.00011658,2]
[394324568,1763451806311,6537.79,0.00012074,2]
[394324569,1763451806441,151.0,0.0004169,120]
[394324570,1763451806509,1096.0733407,0.0001249,2]
[394324571,1763451806539,5441.7166593,0.0001249,2]
[394324572,1763451806591,151.0,0.0004169,120]
[394324573,1763451806701,4558.2933407,0.00012907,2]
[394324574,1763451806731,1979.4966593,0.00012907,2]
[394324575,1763451806781,151.0,0.0004169,120]
[394324576,1763451806878,363.54772,0.0004169,120]
[394324577,1763451806928,151.0,0.0004169,120]
[394324578,1763451806961,6537.79,0.00013323,2]
[394324579,1763451807066,151.0,0.0004169,120]
[394324580,1763451807100,1482.7233407,0.0001374,2]
[394324581,1763451807130,5055.0666593,0.0001374,2]
[394324582,1763451807197,151.0,0.0004169,120]
[394324583,1763451807251,363.54772,0.0004169,120]
[394324584,1763451807291,6537.79,0.00014156,2]
[394324585,1763451807428,151.0,0.0004169,120]
[394324586,1763451807497,6537.79,0.00014572,2]
[394324587,1763451807617,363.54772,0.0004169,120]
[394324588,1763451807669,151.0,0.0004169,120]
[394324589,1763451807700,6537.79,0.00014989,2]
[394324590,1763451807805,280.225889,0.0004169,120]
[394324591,1763451807886,6537.79,0.00015405,2]
[394324592,1763451808100,151.0,0.0004169,120]
[394324593,1763451808150,363.54772,0.0004169,120]
[394324594,1763451808392,151.0,0.0004169,120]
[394324595,1763451808456,363.54772,0.0004169,120]
[394324596,1763451808694,151.0,0.0004169,120]
[394324597,1763451808791,363.54772,0.0004169,120]
[394324598,1763451808983,151.0,0.0004169,120]
[394324599,1763451809220,-3462.22,0.00015821,2]
[394324600,1763451809373,151.0,0.0004169,120]
[394324601,1763451809408,-3075.57,0.00015821,2]
[394324602,1763451809460,363.54772,0.0004169,120]
[394324603,1763451809723,151.0,0.0004169,120]
[394324604,1763451809776,363.54772,0.0004169,120]
[394324605,1763451810124,363.54772,0.0004169,120]
[394324606,1763451810240,151.0,0.0004169,120]
[394324607,1763451810531,363.54772,0.0004169,120]
[394324608,1763451810595,281.758994,0.0004169,120]
[394324609,1763451810852,363.54772,0.0004169,120]
[394324610,1763451811203,363.54772,0.0004169,120]
[394324611,1763451811559,363.54772,0.0004169,120]
[394324612,1763451812077,363.54772,0.0004169,120]
[394324613,1763451812393,363.54772,0.0004169,120]
[394324614,1763451812718,3848.87,0.00016522,2]
[394324615,1763451812745,2474.3558,0.00016522,2]
[394324616,1763451812793,363.54772,0.0004169,120]
[394324617,1763451813135,363.54772,0.0004169,120]
[394324618,1763451813432,363.54772,0.0004169,120]
[394324619,1763451813567,152.07497253,0.00016522,2]
[394324620,1763451813723,363.54772,0.0004169,120]
[394324621,1763451814038,363.54772,0.0004169,120]
[394324622,1763451820374,2500.0,0.00016522,2]
[394324623,1763451824593,208.88676305,0.00016522,2]
[394324624,1763451830118,31740.0,0.0004169,30]
[394324625,1763451845555,262.203616,0.0004169,120]
[394324626,1763451847269,500.0,0.00016621,2]
[394324627,1763451847675,500.0,0.00016621,2]
[394324628,1763451848529,151.0,0.0004169,120]
[394324629,1763451848999,282.600692,0.0004169,120]
[394324630,1763451875402,500.0,0.00016621,2]
[394324631,1763451889254,2130.76,0.00015838,2]
[394324632,1763451897392,171.86246686,0.00016522,2]
[394324633,1763451901749,1200.0,0.00016621,2]
[394324634,1763451901880,550.0,0.00016621,2]
[394324635,1763451901932,300.0,0.00016621,2]
[394324636,1763451902566,300.0,0.00016621,2]
[394324637,1763451907015,150.0,0.00015288,2]
[394324638,1763451907084,150.0,0.00015854,2]
[394324639,1763451907140,150.0,0.0001642,2]
[394324640,1763451907350,150.0,0.00015288,2]
[394324641,1763451907889,3038.50077009,0.00016522,2]
[394324642,1763451907917,7112.52272991,0.00016522,2]
[394324643,1763451910304,2836.03851352,0.00016522,2]
[394324644,1763451913399,51.44875657,0.00015288,2]
[394324645,1763451913425,98.55124343,0.00015288,2]
[394324646,1763451913467,150.0,0.00015288,2]
[394324647,1763451913578,150.0,0.00015712,2]
[394324648,1763451913609,150.0,0.00016137,2]
[394324649,1763451913787,150.0,0.00016562,2]
[394324650,1763451915261,2836.03851344,0.00016564,2]
[394324651,1763451915532,150.0,0.00015288,2]
[394324652,1763451920283,2836.03851344,0.00016606,2]
[394324653,1763451921538,500.0,0.00016621,2]
[394324654,1763451921599,500.0,0.00016621,2]
[394324655,1763451921634,500.0,0.00016621,2]
[394324656,1763451921673,500.0,0.00016621,2]
[394324657,1763451921709,500.0,0.00016621,2]
[394324658,1763451921751,500.0,0.00016621,2]
[394324659,1763451921788,479.38172969,0.00016621,2]
[394324660,1763451921818,20.61827031,0.00016621,2]
[394324661,1763451921852,500.0,0.00016621,2]
[394324662,1763451921888,348.30222125,0.00016621,2]
[394324663,1763451921988,500.0,0.00016621,2]
[394324664,1763451922025,500.0,0.00016621,2]
[394324665,1763451922142,500.0,0.00016621,2]
[394324666,1763451922191,500.0,0.00016621,2]
[394324667,1763451922246,500.0,0.00016621,2]
[394324668,1763451922298,500.0,0.00016621,2]
[394324669,1763451922340,500.0,0.00016621,2]
[394324670,1763451922394,500.0,0.00016621,2]
[394324671,1763451922465,500.0,0.00016621,2]
[394324672,1763451922508,500.0,0.00016621,2]
[394324673,1763451922567,500.0,0.00016621,2]
[394324674,1763451922626,500.0,0.00016621,2]
[394324675,1763451924097,1000.0,0.000165,2]
[394324676,1763451926605,1000.0,0.00016522,2]
[394324677,1763451928492,150.0,0.00015288,2]
[394324678,1763451928528,150.0,0.00016137,2]
[394324679,1763451941076,500.0,0.00016621,2]
[394324680,1763451941118,500.0,0.00016621,2]
[394324681,1763451941153,500.0,0.00016621,2]
[394324682,1763451941189,500.0,0.00016621,2]
[394324683,1763451941224,500.0,0.00016621,2]
[394324684,1763451941260,500.0,0.00016621,2]
[394324685,1763451941295,500.0,0.00016621,2]
[394324686,1763451941343,500.0,0.00016621,2]
[394324687,1763451941385,500.0,0.00016621,2]
[394324688,1763451941421,348.30222125,0.00016621,2]
[394324689,1763451941458,500.0,0.00016621,2]
[394324690,1763451941496,500.0,0.00016621,2]
[394324691,1763451941540,500.0,0.00016621,2]
[394324692,1763451941574,500.0,0.00016621,2]
[394324693,1763451941629,500.0,0.00016621,2]
[394324694,1763451941666,500.0,0.00016621,2]
[394324695,1763451941701,500.0,0.00016621,2]
[394324696,1763451941743,500.0,0.00016621,2]
[394324697,1763451942179,500.0,0.00016621,2]
[394324698,1763451953833,500.0,0.00016621,2]
[394324699,1763451954075,151.70777875,0.00016621,2]
[394324700,1763451954101,348.29222125,0.00016621,2]
[394324701,1763451954137,500.0,0.00016621,2]
[394324702,1763451954174,500.0,0.00016621,2]
[394324703,1763451954216,500.0,0.00016621,2]
[394324704,1763451954252,500.0,0.00016621,2]
[394324705,1763451954306,500.0,0.00016621,2]
[394324706,1763451954365,500.0,0.00016621,2]
[394324707,1763451954412,500.0,0.00016621,2]
[394324708,1763451954458,500.0,0.00016621,2]
[394324709,1763451954577,160.33260006,0.00016621,2]
[394324710,1763451954624,500.0,0.00016621,2]
[394324711,1763451955475,4991.38517869,0.00016522,2]
[394324712,1763451955505,10000.01,0.00016522,2]
[394324713,1763451995714,500.0,0.00016521,2]
[394324714,1763451995752,500.0,0.00016521,2]
[394324715,1763451995797,500.0,0.00016521,2]
[394324716,1763451995832,500.0,0.00016521,2]
[394324717,1763451995864,500.0,0.00016521,2]
[394324718,1763451995901,500.0,0.00016521,2]
[394324719,1763451995939,445.75800732,0.00016521,2]
[394324720,1763451995976,631.64649294,0.00016521,2]
[394324721,1763451996007,202.81379868,0.00016521,2]
[394324722,1763451996038,500.0,0.00016521,2]
[394324723,1763451996077,500.0,0.00016521,2]
[394324724,1763451996112,500.0,0.00016521,2]
[394324725,1763451996145,500.0,0.00016521,2]
[394324726,1763451996184,205.13397946,0.00016521,2]
[394324727,1763451996223,500.0,0.00016521,2]
[394324728,1763451996259,500.0,0.00016521,2]
[394324729,1763451996304,500.0,0.00016521,2]
[394324730,1763451996338,500.0,0.00016521,2]
[394324731,1763451996376,500.0,0.00016521,2]
[394324732,1763451996409,500.0,0.00016521,2]
[394324733,1763451996441,500.0,0.00016521,2]
[394324734,1763451996479,14.6577216,0.00016521,2]
[394324735,1763451996509,485.3422784,0.00016521,2]
[394324736,1763451996542,500.0,0.00016521,2]
[394324737,1763451996574,500.0,0.00016521,2]
[394324738,1763451996608,500.0,0.00016521,2]
[394324739,1763451996644,500.0,0.00016521,2]
[394324740,1763451996683,500.0,0.00016521,2]
[394324741,1763451996719,500.0,0.00016521,2]
[394324742,1763451996756,500.0,0.00016521,2]
[394324743,1763451996800,500.0,0.00016521,2]
[394324744,1763451996839,500.0,0.00016521,2]
[394324745,1763451996880,647.29361885,0.00016521,2]
[394324746,1763451996919,500.0,0.00016521,2]
[394324747,1763451996964,176.94803404,0.00016521,2]
[394324748,1763451996996,500.0,0.00016521,2]
[394324749,1763451997031,500.0,0.00016521,2]
[394324750,1763451997063,500.0,0.00016521,2]
[394324751,1763451997100,500.0,0.00016521,2]
[394324752,1763451997136,500.0,0.00016521,2]
[394324753,1763451997170,500.0,0.00016521,2]
[394324754,1763451997224,500.0,0.00016521,2]
[394324755,1763451997279,190.42606871,0.00016521,2]
[394324756,1763451997306,309.57393129,0.00016521,2]
[394324757,1763451997345,500.0,0.00016521,2]
[394324758,1763451997380,500.0,0.00016521,2]
[394324759,1763451997419,500.0,0.00016521,2]
[394324760,1763451997460,500.0,0.00016521,2]
[394324761,1763451999102,1600.0,0.00015815,2]
[394324765,1763452035617,900.0,0.000164,5]
[394324766,1763452037711,1900.0,0.000165,6]
[394324767,1763452043116,499.99999999,0.00016521,2]
[394324768,1763452043822,887.79,0.00013699,2]
[394324776,1763452058054,665.81154363,0.00016422,2]
[394324777,1763452066300,1200.0,0.00016521,2]
[394324778,1763452081819,550.0,0.00016521,2]
[394324779,1763452081909,178.0,0.00016521,2]
[394324780,1763452090603,315.37,0.00015801,2]
[394324781,1763452105024,202.64361775,0.00016422,2]
[394324782,1763452118872,152.07497253,0.00016422,2]
[394324783,1763452127857,-2000.0,0.00016522,2]
[394324784,1763452129292,-2000.0,0.00016522,2]
[394324785,1763452134540,-2000.0,0.00016522,2]
[394324786,1763452135622,-2000.0,0.00016522,2]
[394324787,1763452137274,-2000.0,0.00016522,2]
[394324788,1763452141579,300.0,0.00016521,2]
[394324789,1763452144423,-2000.0,0.00016522,2]
[394324790,1763452156933,-2000.0,0.00016522,2]
[394324791,1763452158257,-2000.0,0.00016522,2]
[394324792,1763452159261,-2000.0,0.00016522,2]
[394324825,1763452196183,1138.74593481,0.00016422,2]
[394324826,1763452196211,2586.99160922,0.00016422,2]
[394324827,1763452201145,3725.73754399,0.00016475,2]
[394324828,1763452201359,300.0,0.00016521,2]
[394324829,1763452201396,300.0,0.00016521,2]
[394324830,1763452201597,1200.0,0.00016521,2]
[394324831,1763452203207,180.71,0.00016512,2]
[394324832,1763452203722,180.71,0.00016512,2]
[394324833,1763452204964,1525.86084679,0.00016512,2]
[394324834,1763452204993,5194.87915321,0.00016512,2]
[394324835,1763452205179,4805.13084679,0.00016512,2]
[394324836,1763452205208,1915.60915321,0.00016512,2]
[394324837,1763452206330,163.66,0.00016512,2]
[394324840,1763452231995,-472.5292627,0.00016522,2]
[394324841,1763452232291,-97195.94276908,0.00016522,2]
[394324842,1763452232306,-14355.57587084,0.00016522,2]
[394324843,1763452232330,-18632.74445159,0.00016522,2]
[394324844,1763452232357,-441.68914908,0.00016522,2]
[394324845,1763452232433,-9074.4,0.00016522,2]
[394324846,1763452232571,-1557.6104135,0.00016522,2]
[394324847,1763452232591,-585278.11290452,0.00016522,2]
[394324848,1763452232608,-2500.0,0.00016522,2]
[394324849,1763452232621,-500.0,0.00016522,2]
[394324850,1763452232643,-1000.0,0.00016522,2]
[394324851,1763452232656,-582.23102044,0.00016528,2]
[394324852,1763452232673,-3725.73754399,0.00016528,2]
[394324853,1763452232699,-195.0,0.00016534,2]
[394324854,1763452232725,-2099.10903783,0.00016541,2]
[394324855,1763452232761,-250.0,0.00016572,2]
[394324856,1763452232775,-222.2989347,0.00016576,2]